[Event "French-ch U12-U14 2024"]
[Site "Agen"]
[Date "2024.04.18"]
[Round "6.2"]
[White "Alcantara, Levanah"]
[Black "Le Floch, Alexia"]
[Result "1-0"]
[ECO "E32"]
[WhiteElo "1756"]
[BlackElo "1641"]
[Annotator "NA RC COMBH"]
[PlyCount "107"]
[EventDate "2024.04.14"]
[EventType "swiss"]
[EventCountry "FRA"]
[SourceTitle "playchess.com"]
[Source "ChessBase"]
[SourceQuality "1"]
[TimeControl "5400+30"]

1. d4 {[%emt 0:00:16]} Nf6 {[%emt 0:00:08]} 2. c4 {[%emt 0:00:17]} e6 {[%emt 0:00:07]} 3. Nc3 {[%emt 0:00:06]} Bb4 {[%emt 0:00:10]} 4. Qc2 {[%emt 0:00:07]} O-O {[%emt 0:00:09]} 5. a3 {[%emt 0:00:19]} Bxc3+ {[%emt 0:00:44]} 6. Qxc3 {[%emt 0:00:13]} b6 {[%emt 0:01:23]} 7. Bf4 {[%emt 0:02:03]} Bb7 {[%emt 0:01:08]} 8. e3 {[%emt 0:00:39]} d5 {[%emt 0:01:30]} 9. Nf3 {[%emt 0:01:59]} Nbd7 {[%emt 0:01:20]} 10. Be2 {[%emt 0:02:21]} c5 {[%emt 0:04:07]} 11. Ne5 {[%emt 0:09:00]} Rc8 {[%emt 0:03:41]} 12. Qb3 {[%emt 0:06:43]} dxc4 {[%emt 0:05:48]} 13. Bxc4 {[%emt 0:02:24]} Nxe5 {[%emt 0:06:18]} 14. dxe5 {[%emt 0:03:19]} Nh5 {[%emt 0:02:32]} 15. O-O {[%emt 0:03:43]} Nxf4 {[%emt 0:05:10]} 16. exf4 {[%emt 0:00:09]} Qd4 {[%emt 0:02:05]} 17. g3 {[%emt 0:08:41]} Qe4 {[%emt 0:02:35]} 18. f3 {[%emt 0:00:14]} Qd4+ {[%emt 0:00:10]} 19. Kh1 {[%emt 0:00:46]} Bd5 {[%emt 0:03:25]} 20. Bxd5 {[%emt 0:04:14]} Qxd5 {[%emt 0:00:16]} 21. Qa4 {[%emt 0:01:44]} Qb7 {[%emt 0:01:09]} 22. Qe4 {[%emt 0:01:47]} Qxe4 {[%emt 0:04:11]} 23. fxe4 {[%emt 0:00:11]} Rcd8 {[%emt 0:00:17]} 24. Rad1 {[%emt 0:02:10]} c4 {[%emt 0:01:31]} 25. Rd6 {[%emt 0:00:58]} Rc8 {[%emt 0:13:15]} 26. Rc1 {[%emt 0:03:01]} Rc7 {[%emt 0:01:05]} 27. Kg2 {[%emt 0:01:23]} Rfc8 {[%emt 0:00:10]} 28. Kf3 {[%emt 0:00:49]} Kf8 {[%emt 0:00:15]} 29. Rc3 {[%emt 0:02:36]} Ke7 {[%emt 0:01:11]} 30. Ke3 {[%emt 0:01:18]} Rd7 {[%emt 0:01:29]} 31. Rxd7+ {[%emt 0:01:38]} Kxd7 {[%emt 0:00:05]} 32. Kd4 {[%emt 0:00:38]} b5 {[%emt 0:02:00]} 33. a4 {[%emt 0:01:21]} a6 {[%emt 0:00:55]} 34. axb5 {[%emt 0:02:01]} axb5 {[%emt 0:00:10]} 35. Ra3 {[%emt 0:00:39]} Rc7 {[%emt 0:01:18]} 36. Ra6 {[%emt 0:01:22]} Kc8 {[%emt 0:04:26]} 37. f5 {[%emt 0:04:42]} Kb7 {[%emt 0:00:46]} 38. Rd6 {[%emt 0:00:27]} exf5 {[%emt 0:05:46]} 39. exf5 {[%emt 0:00:43]} b4 {[%emt 0:00:23]} 40. Ke4 {[%emt 0:04:09]} c3 {[%emt 0:02:37]} 41. bxc3 {[%emt 0:00:23]} bxc3 {[%emt 0:00:20]} 42. Rd1 {[%emt 0:00:16]} Kb6 {[%emt 0:03:01]} 43. Rc1 {[%emt 0:00:36]} c2 {[%emt 0:01:00]} 44. e6 {[%emt 0:03:05]} fxe6 {[%emt 0:00:53]} 45. fxe6 {[%emt 0:00:24]} Kb7 {[%emt 0:02:48]} 46. Kd5 {[%emt 0:01:44]} Kc8 {[%emt 0:01:13]} 47. Kd6 {[%emt 0:00:32]} Kd8 {[%emt 0:01:17]} 48. Rf1 {[%emt 0:03:11]} Re7 {[%emt 0:00:45]} 49. Rf8+ {[%emt 0:01:11]} Re8 {[%emt 0:00:51]} 50. e7+ {[%emt 0:00:07]} Kc8 {[%emt 0:00:46]} 51. Rxe8+ {[%emt 0:00:05]} Kb7 {[%emt 0:00:14]} 52. Rb8+ {[%emt 0:00:11]} Kxb8 {[%emt 0:00:39]} 53. e8=Q+ {[%emt 0:00:09]} Ka7 {[%emt 0:00:12]} 54. Qc6 {[%emt 0:24:26]} 1-0

[Event "French-ch U12-U14 2024"]
[Site "Agen"]
[Date "2024.04.18"]
[Round "6.4"]
[White "Anseeuw, Emma"]
[Black "Pierrot, Anais"]
[Result "1-0"]
[ECO "D03"]
[WhiteElo "1667"]
[BlackElo "1593"]
[Annotator "NA RC COMBH"]
[PlyCount "65"]
[EventDate "2024.04.14"]
[EventType "swiss"]
[EventCountry "FRA"]
[SourceTitle "playchess.com"]
[Source "ChessBase"]
[SourceQuality "1"]
[TimeControl "5400+30"]

1. d4 {[%emt 0:00:03]} Nf6 {[%emt 0:00:08]} 2. Bg5 {[%emt 0:00:11]} e6 {[%emt 0:01:58]} 3. Nd2 {[%emt 0:00:51]} d5 {[%emt 0:02:33]} 4. Ngf3 {[%emt 0:01:05]} h6 {[%emt 0:05:03]} 5. Bf4 {[%emt 0:03:03]} Bd6 {[%emt 0:03:23]} 6. Bg3 {[%emt 0:00:33]} Bxg3 {[%emt 0:03:47]} 7. hxg3 {[%emt 0:00:15]} Nbd7 {[%emt 0:02:59]} 8. e3 {[%emt 0:02:51]} c5 {[%emt 0:01:37]} 9. c3 {[%emt 0:00:20]} b6 {[%emt 0:01:11]} 10. Bd3 {[%emt 0:01:45]} Bb7 {[%emt 0:01:04]} 11. a4 {[%emt 0:02:35]} O-O {[%emt 0:04:11]} 12. Ne5 {[%emt 0:05:37]} Qc7 {[%emt 0:03:52]} 13. f4 {[%emt 1:17:51]} Rac8 {[%emt 0:05:44]} 14. g4 {[%emt 0:00:00]} Nxe5 {[%emt 0:04:17]} 15. fxe5 {[%emt 0:00:00]} Ne4 {[%emt 0:02:52]} 16. Bxe4 {[%emt 0:00:00]} dxe4 {[%emt 0:02:08]} 17. g5 {[%emt 0:00:00]} Qe7 {[%emt 0:10:31]} 18. gxh6 {[%emt 0:00:00]} Qg5 {[%emt 0:06:35]} 19. Qe2 {[%emt 0:00:00]} Qg3+ {[%emt 0:05:25]} 20. Kd1 {[%emt 0:00:00]} gxh6 {[%emt 0:11:13]} 21. Rxh6 {[%emt 0:00:00]} Qg7 {[%emt 0:00:33]} 22. Rh4 {[%emt 0:00:00]} f5 {[%emt 0:03:44]} 23. exf6 {[%emt 0:00:00]} Rxf6 {[%emt 0:00:31]} 24. Qh5 {[%emt 0:00:00]} Rc7 {[%emt 0:02:26]} 25. Rg4 {[%emt 0:00:00]} Qxg4+ {[%emt 0:01:02]} 26. Qxg4+ {[%emt 0:00:00]} Rg7 {[%emt 0:00:19]} 27. Qh4 {[%emt 0:00:00]} Rff7 {[%emt 0:01:37]} 28. Kc2 {[%emt 0:00:00]} Rxg2 {[%emt 0:04:20]} 29. Rh1 {[%emt 0:00:00]} Kf8 {[%emt 0:00:22]} 30. Qd8+ {[%emt 0:00:00]} Kg7 {[%emt 0:00:19]} 31. Qh8+ {[%emt 0:00:00]} Kg6 {[%emt 0:00:16]} 32. Qh6+ {[%emt 0:00:00]} Kf5 {[%emt 0:00:13]} 33. Rf1+ {[%emt 0:00:00]} 1-0

[Event "French-ch U12-U14 2024"]
[Site "Agen"]
[Date "2024.04.18"]
[Round "6.5"]
[White "Carnet, Anaelle"]
[Black "Manouvel, Maelys"]
[Result "0-1"]
[ECO "B78"]
[WhiteElo "1590"]
[BlackElo "1541"]
[Annotator "NA RC COMBH"]
[PlyCount "134"]
[EventDate "2024.04.14"]
[EventType "swiss"]
[EventCountry "FRA"]
[SourceTitle "playchess.com"]
[Source "ChessBase"]
[SourceQuality "1"]
[TimeControl "5400+30"]

1. e4 {[%emt 1:31:00]} c5 {[%emt 0:00:20]} 2. Nf3 {[%emt 0:00:00]} d6 {[%emt 0:00:08]} 3. d4 {[%emt 0:00:00]} cxd4 {[%emt 0:00:26]} 4. Nxd4 {[%emt 0:00:00]} Nf6 {[%emt 0:00:45]} 5. Nc3 {[%emt 0:00:00]} g6 {[%emt 0:01:21]} 6. f3 {[%emt 0:00:00]} Bg7 {[%emt 0:01:04]} 7. Be3 {[%emt 0:00:00]} Nc6 {[%emt 0:00:56]} 8. Qd2 {[%emt 0:00:00]} O-O {[%emt 0:00:59]} 9. Bc4 {[%emt 0:00:00]} Bd7 {[%emt 0:01:11]} 10. O-O-O {[%emt 0:00:00]} Rc8 {[%emt 0:01:00]} 11. Bb3 {[%emt 0:00:00]} Nxd4 {[%emt 0:01:10]} 12. Bxd4 {[%emt 0:00:00]} b5 {[%emt 0:01:47]} 13. h4 {[%emt 0:00:00]} a5 {[%emt 0:03:48]} 14. e5 {[%emt 0:00:00]} dxe5 {[%emt 0:04:21]} 15. Bxe5 {[%emt 0:00:00]} a4 {[%emt 0:04:14]} 16. Bxf6 {[%emt 0:00:00]} Bxf6 {[%emt 0:04:12]} 17. Qxd7 {[%emt 0:00:00]} Qxd7 {[%emt 0:02:05]} 18. Rxd7 {[%emt 0:00:00]} axb3 {[%emt 0:01:47]} 19. axb3 {[%emt 0:00:00]} Rfd8 {[%emt 0:18:10]} 20. Rxd8+ {[%emt 0:00:00]} Rxd8 {[%emt 0:00:32]} 21. Nxb5 {[%emt 0:00:00]} Be5 {[%emt 0:01:42]} 22. Re1 {[%emt 0:00:00]} Bf4+ {[%emt 0:02:29]} 23. Kb1 {[%emt 0:00:00]} e5 {[%emt 0:02:11]} 24. g4 {[%emt 0:00:00]} f5 {[%emt 0:08:27]} 25. gxf5 {[%emt 0:00:00]} gxf5 {[%emt 0:00:45]} 26. Rg1+ {[%emt 0:00:00]} Kf7 {[%emt 0:02:05]} 27. Nc3 {[%emt 0:00:00]} Rd2 {[%emt 0:05:14]} 28. Rf1 {[%emt 0:00:25]} Rh2 {[%emt 0:02:40]} 29. b4 {[%emt 0:01:52]} Rxh4 {[%emt 0:01:32]} 30. b5 {[%emt 0:01:10]} Bd2 {[%emt 0:04:49]} 31. Ka2 {[%emt 0:03:06]} Rb4 {[%emt 0:01:57]} 32. Nb1 {[%emt 0:02:00]} Be3 {[%emt 0:04:32]} 33. Re1 {[%emt 0:01:21]} f4 {[%emt 0:01:59]} 34. Nc3 {[%emt 0:01:06]} Ke6 {[%emt 0:01:23]} 35. Ka3 {[%emt 0:01:12]} Bc5 {[%emt 0:01:16]} 36. Ka2 {[%emt 0:00:24]} Bd4 {[%emt 0:00:43]} 37. Rh1 {[%emt 0:00:33]} Bxc3 {[%emt 0:01:12]} 38. bxc3 {[%emt 0:00:06]} Rxb5 {[%emt 0:00:32]} 39. Rxh7 {[%emt 0:00:15]} Kd5 {[%emt 0:01:13]} 40. Rh5 {[%emt 0:01:07]} Kc4 {[%emt 0:00:29]} 41. Rh8 {[%emt 0:00:33]} Kxc3 {[%emt 0:00:19]} 42. Rc8+ {[%emt 0:00:06]} Kd4 {[%emt 0:00:33]} 43. c3+ {[%emt 0:00:17]} Kd3 {[%emt 0:04:48]} 44. c4 {[%emt 0:00:49]} Rb7 {[%emt 0:00:20]} 45. Rc5 {[%emt 0:00:32]} e4 {[%emt 0:01:40]} 46. Rd5+ {[%emt 0:01:55]} Kxc4 {[%emt 0:00:18]} 47. fxe4 {[%emt 0:00:18]} Re7 {[%emt 0:00:09]} 48. Rd2 {[%emt 0:01:25]} Rxe4 {[%emt 0:00:12]} 49. Kb2 {[%emt 0:00:26]} f3 {[%emt 0:00:40]} 50. Kc2 {[%emt 0:00:23]} Re3 {[%emt 0:00:59]} 51. Kd1 {[%emt 0:00:35]} Rd3 {[%emt 0:00:35]} 52. Ke1 {[%emt 0:01:05]} Rxd2 {[%emt 0:00:22]} 53. Kxd2 {[%emt 0:00:17]} Kd4 {[%emt 0:00:06]} 54. Ke1 {[%emt 0:00:25]} Ke3 {[%emt 0:00:08]} 55. Kf1 {[%emt 0:00:05]} f2 {[%emt 0:00:06]} 56. Kg2 {[%emt 0:00:07]} Ke2 {[%emt 0:00:09]} 57. Kg3 {[%emt 0:00:28]} f1=Q {[%emt 0:00:10]} 58. Kg4 {[%emt 0:00:04]} Ke3 {[%emt 0:00:17]} 59. Kg5 {[%emt 0:00:11]} Qf4+ {[%emt 0:00:24]} 60. Kg6 {[%emt 0:00:05]} Qe5 {[%emt 0:00:20]} 61. Kf7 {[%emt 0:00:17]} Qd6 {[%emt 0:00:16]} 62. Kg7 {[%emt 0:00:07]} Qe6 {[%emt 0:00:21]} 63. Kf8 {[%emt 0:00:11]} Qd7 {[%emt 0:00:12]} 64. Kg8 {[%emt 0:00:11]} Kf4 {[%emt 0:00:11]} 65. Kf8 {[%emt 0:00:13]} Kg5 {[%emt 0:00:08]} 66. Kg8 {[%emt 0:00:05]} Kg6 {[%emt 0:00:21]} 67. Kf8 {[%emt 0:00:12]} Qf7# {[%emt 0:00:12]} 0-1

[Event "French-ch U12-U14 2024"]
[Site "Agen"]
[Date "2024.04.18"]
[Round "6.8"]
[White "Landolsi, Iyad"]
[Black "El Zein, Bassam"]
[Result "0-1"]
[ECO "B30"]
[WhiteElo "1970"]
[BlackElo "1924"]
[Annotator "TA"]
[PlyCount "226"]
[EventDate "2024.04.14"]
[EventType "swiss"]
[EventCountry "FRA"]
[SourceTitle "playchess.com"]
[Source "ChessBase"]
[SourceQuality "1"]
[TimeControl "5400+30"]

{[%evp 10,226,0,-1,10,0,14,18,29,46,46,31,53,41,64,43,58,27,21,12,28,28,50,36,46,39,22,0,25,25,32,0,8,-21,-16,-38,-23,-34,0,0,0,0,18,0,0,0,18,0,0,0,-6,-48,-46,-45,-44,-51,-32,-46,-31,-73,-41,-60,-59,-54,-60,-81,-56,-66,0,-83,-43,-89,-88,-95,-53,-102,-68,-61,-45,-45,-45,-46,-47,-57,-54,-51,-46,-83,-22,-68,-73,-77,-21,-65,0,-46,0,0,0,-30,-22,-89,0,-112,-80,-64,-60,-45,0,-77,0,-45,105,-58,-43,-59,0,-156,-51,-197,-197,-327,-315,-293,-316,-478,-511,-527,-529,-599,-494,-485,-331,-346,-309,-409,-405,-395,-366,-366,-366,-360,-326,-360,-360,-360,-343,-383,-335,-586,-569,-561,-564,-656,-598,-626,-590,-627,-606,-652,-629,-973,-923,-893,-892,-1199,-1050,-1918,-1149,-5949,-993,-29956,-12847,-29957,-425,-29953,-12792,-5213,-4627,-29980,-29981,-29981,-29982,-29982,-29983,-29984,-29984,-29984,-29984,-29984,-29984,-29984,0,-29984,-29984,-29985,-29986,-29986,-29985,-29985,-29986,-29989,-29983,-29985,-29966,-4598,0,-29984,-29981,-29986,-29979,-29968,-77,-29987,-29988,-29995,-29996,-29997,-29998]} 1. e4 {[%emt 0:00:02]} c5 {[%emt 0:00:10]} 2. Nf3 {[%emt 0:00:07]} Nc6 {[%emt 0:00:14]} 3. Bb5 {[%emt 0:00:05]} e6 {[%emt 0:00:06]} 4. Bxc6 {[%emt 0:00:06]} bxc6 {[%emt 0:00:07]} 5. d3 {[%emt 0:00:24]} Ne7 {[%emt 0:00:15]} 6. h4 {[%emt 0:00:17]} d6 {[%emt 0:01:52]} 7. e5 {[%emt 0:03:09]} dxe5 {[%emt 0:01:44]} 8. Nxe5 {[%emt 0:00:57]} f6 {[%emt 0:00:13] The position is equal.} 9. Nc4 {[%emt 0:01:26]} e5 {[%emt 0:01:45]} 10. Nc3 {[%emt 0:03:44]} Be6 {[%emt 0:00:47]} 11. Ne4 {[%emt 0:09:36] Ncd6+ is the strong threat. A dynamic duo of knights.} Nd5 {[%emt 0:01:34]} 12. Qe2 {[%emt 0:01:41][%cal Of2f4]} Be7 {[%emt 0:01:26]} 13. O-O {[%emt 0:02:01]} O-O {[%emt 0:00:36]} 14. b3 {[%emt 0:04:00]} Qe8 {[%emt 0:12:05]} 15. Bd2 {[%emt 0:16:02]} Rd8 {[%emt 0:01:45]} 16. Rfe1 {[%emt 0:01:23]} Bf7 {[%emt 0:02:05]} 17. Ng3 {[%emt 0:02:05]} Qd7 {[%emt 0:03:11]} 18. a3 {[%emt 0:03:24]} Rfe8 {[%emt 0:01:15]} 19. Qf3 {[%emt 0:03:44]} Nc7 {[%emt 0:01:11]} 20. Nf5 {[%emt 0:03:59]} Bf8 {[%emt 0:01:06]} 21. Nfe3 {[%emt 0:05:29]} (21. Ba5 {is interesting.} Bd5 22. Qh3 g6 23. Qg3) 21... Ne6 {[%emt 0:00:51]} 22. Qf5 {[%emt 0:02:35]} Qe7 {[%emt 0:03:08]} 23. Qg4 {[%emt 0:01:21]} (23. Qh3 {simplifies} Nd4 24. Rac1 g6 25. Nb2) 23... Nd4 {[%emt 0:02:25]} 24. Nf5 {[%emt 0:02:34]} Nxf5 {[%emt 0:00:25]} 25. Qxf5 {[%emt 0:00:06]} Be6 {[%emt 0:00:36]} 26. Qf3 {[%emt 0:00:36]} Qf7 $1 {[%emt 0:02:32]} 27. Qg3 {[%emt 0:02:19]} Rd4 {[%emt 0:02:05]} 28. f3 {[%emt 0:03:36]} Qh5 $1 {[%emt 0:00:46]} 29. Re4 {[%emt 0:00:52]} Bd5 {[%emt 0:01:09]} 30. Rxd4 {[%emt 0:01:03]} cxd4 {[%emt 0:00:02]} 31. Bb4 {[%emt 0:02:45]} c5 {[%emt 0:03:17]} 32. Bd2 {[%emt 0:00:18]} Qf7 {[%emt 0:00:54]} 33. Rb1 {[%emt 0:02:28]} Qb7 {[%emt 0:02:14]} 34. Qe1 {[%emt 0:02:25]} Rb8 {[%emt 0:01:02]} 35. Na5 {[%emt 0:00:52]} Qf7 {[%emt 0:00:53]} 36. Nc4 {[%emt 0:01:32]} Qg6 {[%emt 0:00:32]} 37. Kh1 {[%emt 0:01:15]} Qh5 {[%emt 0:00:43]} 38. Kg1 {[%emt 0:02:23]} Qg6 {[%emt 0:03:55]} 39. Kh1 $1 {[%emt 0:01:46]} Qf5 {[%emt 0:01:34]} 40. Qf1 {[%emt 0:01:34]} (40. Kg1 $15) 40... Qh5 $17 {[%emt 0:00:35]} 41. Qf2 {[%emt 0:01:22]} Be7 {[%emt 0:01:50]} 42. Kg1 {[%emt 0:02:10]} (42. Qe1 $15) 42... Qg6 {[%emt 0:00:52]} 43. Qf1 {[%emt 0:01:06]} Qf5 {[%emt 0:04:24] Black is more active.} 44. Qe1 {[%emt 0:00:58]} Qe6 {[%emt 0:00:38]} 45. Kh1 {[%emt 0:01:10]} Qa6 {[%emt 0:00:38]} 46. a4 {[%emt 0:01:26]} Re8 {[%emt 0:01:20]} 47. Qg3 {[%emt 0:00:48]} Bf7 {[%emt 0:00:36]} 48. Re1 {[%emt 0:00:22]} Qc6 {[%emt 0:01:37]} (48... Bxc4 $1 $17 49. bxc4 Qxa4) 49. Qg4 {[%emt 0:00:48]} (49. f4 $11) 49... Be6 $15 {[%emt 0:00:46]} 50. Qg3 {[%emt 0:00:49]} Kh8 {[%emt 0:01:52]} (50... Bxc4 $17 51. bxc4 Qxa4) 51. h5 {[%emt 0:00:40]} h6 {[%emt 0:08:22]} (51... Bxc4 $15 52. bxc4 Qxa4) 52. Qg6 {[%emt 0:00:58]} (52. Bxh6 $11 gxh6 53. Nxe5) 52... Rf8 {[%emt 0:00:58]} (52... Bf8 $1 $15) 53. Kg1 {[%emt 0:01:38]} Qd7 {[%emt 0:01:14]} 54. Qg3 {[%emt 0:02:22]} Bf7 {[%emt 0:00:31]} 55. Re4 {[%emt 0:00:59]} (55. Qh3 $11 {remains equal.} Qxh3 56. gxh3) 55... Bxh5 {[%emt 0:01:56]} (55... Re8 $17 56. f4 Bxc4 (56... Bxh5 57. fxe5 Bf7 58. exf6 $14) 57. bxc4 Bd6 58. fxe5 fxe5 (58... Bxe5 59. Bf4 $11)) 56. Qh4 {[%emt 0:02:07]} (56. Nxe5 $1 $11 fxe5 57. Qxe5 Bxf3 (57... Bg5 58. Bxg5 hxg5 59. Qxg5 $11) 58. Qxe7 Qxe7 59. Rxe7) 56... Qe8 {[%emt 0:00:41] aiming for ...f5.} 57. Qh3 {[%emt 0:00:33]} Bg6 {[%emt 0:02:20]} 58. Re1 {[%emt 0:00:16]} Qf7 {[%emt 0:01:09]} 59. Qg3 {[%emt 0:00:26]} (59. Qd7 $11 {keeps the balance.}) 59... Bh7 {[%emt 0:00:31]} (59... Bf5 $17) 60. Qh3 {[%emt 0:00:49]} Qg6 {[%emt 0:00:24]} (60... Bd8 $15 {keeps the upper hand.}) 61. Qh4 $2 {[%emt 0:00:16]} (61. Qd7 $16 Qe8 62. Qxa7) 61... Bd8 $36 {[%emt 0:00:10][%mdl 2048] Black is more active.} 62. Qh3 {[%emt 0:01:03]} Bg8 {[%emt 0:00:25]} (62... Qf7 $15 63. f4 Bc7) 63. Nd6 $2 {[%emt 0:00:46] Black continues to play with concentration.} (63. Qc8 $11) 63... Bc7 {[%emt 0:00:24]} (63... f5 $17 64. Nc4 Bxc4 65. bxc4 Bc7) 64. Ne4 {[%emt 0:00:24]} ({White should try} 64. Qd7 $1 $15 Bd5 65. Rf1 (65. Qxc7 $2 Bxf3 $19) 65... Bxd6 66. Qxd6) 64... f5 $19 {[%emt 0:02:56]} 65. Nxc5 {[%emt 0:00:31] [#]} (65. Nf2 {is a better defense.}) 65... Qc6 $1 {[%emt 0:00:33]} 66. b4 {[%emt 0:00:33] [#]} a5 $1 {[%emt 0:00:44] Threatens to win with ...axb4.} 67. Re2 {[%emt 0:01:37]} (67. Bxh6 $142 Qxh6 (67... gxh6 $2 68. Nd7 $19) 68. Qxh6+ gxh6 69. bxa5) 67... axb4 {[%emt 0:00:12]} 68. Bxb4 {[%emt 0:00:55]} Bd6 {[%emt 0:00:08]} 69. Qg3 {[%emt 0:00:25]} Bxc5 {[%emt 0:00:15]} 70. Bxc5 {[%emt 0:00:06]} Qxc5 {[%emt 0:00:11]} 71. Qxe5 {[%emt 0:00:10]} Qb4 {[%emt 0:01:12]} 72. Qe7 {[%emt 0:00:42]} Qxe7 {[%emt 0:01:37]} (72... Qxa4 $2 73. Qxf8 Qd7 74. Re8 $18 (74. Re7 Qxe7 75. Qxe7 Kh7 $18) (74. Re7 Qxe7 75. Qxe7 Kh7 $18)) 73. Rxe7 {[%emt 0:00:01][%mdl 4096] Endgame. KRB-KR} Ra8 {[%emt 0:01:57]} 74. Re5 {[%emt 0:00:35]} Rxa4 {[%emt 0:00:16]} 75. Rxf5 {[%emt 0:00:14]} Kh7 {[%emt 0:00:07]} 76. Rc5 {[%emt 0:00:27]} Kg6 {[%emt 0:00:30]} 77. Kf2 {[%emt 0:00:42]} Kf6 {[%emt 0:00:35]} 78. Kg3 {[%emt 0:00:23]} Ra6 {[%emt 0:02:03]} 79. c3 $2 {[%emt 0:00:17]} (79. f4) 79... Ra3 {[%emt 0:00:26]} 80. cxd4 {[%emt 0:00:10]} Rxd3 {[%emt 0:00:02]} 81. Rc8 {[%emt 0:00:52]} Be6 {[%emt 0:00:15]} 82. Rf8+ {[%emt 0:00:21]} Bf7 {[%emt 0:00:21]} 83. Rd8 {[%emt 0:00:14]} Ke7 {[%emt 0:00:05]} 84. Ra8 {[%emt 0:00:18]} Rxd4 {[%emt 0:00:02] And now ...Kf6 would win.} 85. Ra7+ {[%emt 0:00:14]} Kf6 {[%emt 0:00:08]} 86. Ra6+ {[%emt 0:00:11]} Be6 {[%emt 0:00:08]} 87. Rb6 {[%emt 0:00:05]} g5 {[%emt 0:00:07]} 88. Rb8 {[%emt 0:00:13]} h5 {[%emt 0:00:21]} 89. Rf8+ {[%emt 0:00:31]} Kg7 {[%emt 0:00:19]} 90. Re8 {[%emt 0:00:13]} h4+ {[%emt 0:00:04]} 91. Kh2 {[%emt 0:00:16]} Kf7 {[%emt 0:00:05]} (91... Kf6 $142 92. Rf8+ Bf7 93. Kg1 Rd2 94. Ra8 Bd5 95. Ra5 Kg6 96. Ra6+ Kf5 97. Ra7 h3 98. gxh3 Kf4 (98... Bxf3 99. Ra4 $19) 99. Kf1 Bxf3 (99... Kxf3 100. Ra3+ Kf4 101. Ke1 $19) 100. Ra5 Rd5 101. Ra1 Rd1+ (101... Kg3 {is a self mate.} 102. Ke1) 102. Rxd1 Bxd1 103. Kf2 Ba4 104. Kg1 Bd7 105. Kg2 Bf5 106. Kg1 Bxh3 107. Kf2 g4 108. Ke2 g3 109. Ke1 g2 110. Kf2 Ke4 111. Kg1 Kf3 112. Kh2 Kf2 113. Kxh3 g1=Q (113... g1=R {leads to mate.} 114. Kh4 Ke3 115. Kh3 Kf4 116. Kh2 Rg3 117. Kh1 Ke3 118. Kh2 Kf2 119. Kh1 Rh3#) 114. Kh4 Qg6 115. Kh3 Qh5#) 92. Rh8 {[%emt 0:00:51]} (92. Rb8 $19) 92... Rd2 {[%emt 0:00:20] ( -> ...h3)} 93. Kg1 {[%emt 0:00:20]} Kf6 {[%emt 0:00:09]} 94. f4 {[%emt 0:02:49]} gxf4 {[%emt 0:00:27]} 95. Rxh4 {[%emt 0:00:05]} Kg5 {[%emt 0:00:05]} 96. Rh7 {[%emt 0:00:13]} Bd5 {[%emt 0:00:23]} 97. Rg7+ {[%emt 0:00:06]} Kf6 {[%emt 0:00:12]} 98. Rg4 {[%emt 0:00:17]} Kf5 {[%emt 0:25:32]} 99. Rg7 {[%emt 0:00:08]} Ke5 {[%emt 0:00:00]} 100. Rg4 {[%emt 0:01:15]} Kf5 {[%emt 0:00:00]} 101. Rg7 {[%emt 0:00:05]} Ke4 {[%emt 0:00:00]} 102. Re7+ {[%emt 0:00:18]} Kd4 {[%emt 0:00:00]} 103. Rg7 {[%emt 0:00:44]} Ke3 {[%emt 0:00:00]} 104. Re7+ {[%emt 0:00:26]} Be4 {[%emt 0:00:00]} 105. Rg7 {[%emt 0:00:15]} Rd1+ {[%emt 0:00:00]} 106. Kh2 {[%emt 0:00:04]} Kf2 {[%emt 0:00:00]} 107. Rg4 {[%emt 0:00:58]} Ke3 {[%emt 0:00:00]} 108. Rg7 $1 {[%emt 0:00:22]} Bd5 {[%emt 0:00:00]} 109. Rg5 {[%emt 0:00:37]} Kf2 {[%emt 0:00:00]} 110. Rg4 {[%emt 0:00:35]} f3 $2 {[%emt 0:00:00]} (110... Rd4 {mates} 111. Rh4 Kf1 (111... Bxg2 112. Rxf4+ Rxf4 $11) 112. Rg4 Ra4 113. g3 Ra2+ 114. Kh3 f3 115. Rf4 f2 116. g4 Ke2 117. Rf8 Ra3+ (117... f1=R 118. Rxf1 Kxf1 119. Kg3 Rf2 120. Kh4 Kg2 121. g5 Bf7 122. g6 Bxg6 123. Kg5 Be4 124. Kh6 Rf7 125. Kh5 Kf3 126. Kg5 Bd3 127. Kh6 Kf4 128. Kh5 Rh7#) 118. Kh4 Bf3 (118... f1=R 119. Re8+ Kf3 120. Rf8+ Kg2 121. Re8 Bf3 122. Rf8 Ra4 123. Kg5 Rxg4+ 124. Kf5 Be4+ 125. Ke6 Rxf8 126. Ke5 Rb8 127. Kd6 Rg6+ 128. Ke5 Kf3 129. Kd4 Rc6 130. Ke5 Rb5+ 131. Kd4 Rd5#) 119. Kg5 f1=Q (119... f1=R 120. Rh8 $19) 120. Re8+ Re3 121. Rxe3+ Kxe3 122. Kf6 Bxg4+ 123. Kg7 Qf4 124. Kg6 Qf8 125. Kg5 Be2 126. Kg6 Kf4 127. Kh7 Bd3#) 111. Rg5 $2 {[%emt 0:01:43][%mdl 8192]} (111. gxf3 $17 Rb1 (111... Bxf3 $2 112. Rg2+ Ke3 113. Rg1 $19) 112. Rg2+ Kxf3 113. Rg3+ Kf2 (113... Kf4 $2 114. Rg4+ Kf5 115. Rh4 $17) 114. Rg2+ Ke3 115. Rg5) 111... Rd4 {[%emt 0:00:00][%cal Rd4h4] Black mates.} 112. Rh5 {[%emt 0:01:30]} fxg2 {[%emt 0:00:00]} 113. Kh3 {[%emt 0:00:45]} Be6+ {[%emt 0:00:00] Weighted Error Value: White=0.21 (precise) /Black=0.22 (precise) .  Mistake:       	White=13    	Black=9      Inaccurate:     	White=9     	Black=7      OK:         	White=16    	Black=21     Best:        	White=2     	Black=3      Strong:       	White=1     	Black=4} 0-1

[Event "French-ch U12-U14 2024"]
[Site "Agen"]
[Date "2024.04.18"]
[Round "6.9"]
[White "Sagi, Elisha"]
[Black "Bauer, Pierre"]
[Result "1-0"]
[ECO "B70"]
[WhiteElo "1896"]
[BlackElo "1849"]
[Annotator "NA RC COMBH"]
[PlyCount "63"]
[EventDate "2024.04.14"]
[EventType "swiss"]
[EventCountry "FRA"]
[SourceTitle "playchess.com"]
[Source "ChessBase"]
[SourceQuality "1"]
[TimeControl "5400+30"]

1. e4 {[%emt 0:00:01]} c5 {[%emt 0:00:28]} 2. Nf3 {[%emt 0:00:05]} g6 {[%emt 0:00:29]} 3. d4 {[%emt 0:00:04]} cxd4 {[%emt 0:00:31]} 4. Nxd4 {[%emt 0:00:06]} Bg7 {[%emt 0:00:30]} 5. Nc3 {[%emt 0:00:07]} Nc6 {[%emt 0:00:43]} 6. Nde2 {[%emt 0:00:05]} d6 {[%emt 0:02:28]} 7. h3 {[%emt 0:00:07]} Nf6 {[%emt 0:06:20]} 8. g3 {[%emt 0:00:06]} O-O {[%emt 0:01:19]} 9. Bg2 {[%emt 0:00:01]} Bd7 {[%emt 0:05:27]} 10. O-O {[%emt 0:00:20]} Rb8 {[%emt 0:02:24]} 11. a4 {[%emt 0:00:07]} a6 {[%emt 0:01:58]} 12. Be3 {[%emt 0:00:04]} b5 {[%emt 0:02:56]} 13. axb5 {[%emt 0:00:05]} axb5 {[%emt 0:00:06]} 14. Nd5 {[%emt 0:07:42]} Ne8 {[%emt 0:14:02]} 15. Nd4 {[%emt 0:08:28]} Nxd4 {[%emt 0:07:01]} 16. Bxd4 {[%emt 0:00:09]} f5 {[%emt 0:05:50]} 17. Ba7 {[%emt 0:15:52]} Rb7 {[%emt 0:07:04]} 18. exf5 {[%emt 0:06:12]} Bxf5 {[%emt 0:01:49]} 19. Nf6+ {[%emt 0:02:54]} Bxf6 {[%emt 0:01:09]} 20. Qd5+ {[%emt 0:05:10]} Kh8 {[%emt 0:04:58]} 21. Qxb7 {[%emt 0:00:27]} Bxb2 {[%emt 0:02:35]} 22. Rab1 {[%emt 0:02:35]} Bg7 {[%emt 0:01:49]} 23. Rxb5 {[%emt 0:03:01]} e6 {[%emt 0:02:43]} 24. Qb8 {[%emt 0:04:15]} Qxb8 {[%emt 0:04:03]} 25. Rxb8 {[%emt 0:00:07]} Bxc2 {[%emt 0:00:51]} 26. Rc1 {[%emt 0:07:46]} Ba4 {[%emt 0:00:23]} 27. Rc4 {[%emt 0:00:08]} Bd7 {[%emt 0:01:08]} 28. Rb7 {[%emt 0:04:02]} d5 {[%emt 0:04:32]} 29. Rc1 {[%emt 0:03:37]} Nf6 {[%emt 0:05:13]} 30. Rcc7 {[%emt 0:00:27]} e5 {[%emt 0:02:35]} 31. g4 {[%emt 0:09:16]} Rc8 {[%emt 0:03:42]} 32. Rxc8+ {[%emt 0:00:12]} 1-0